[Event "LEM Sachsen-Anhalt Open 2024"]
[Site "Merseburg"]
[Date "2024.02.10"]
[Round "6.1"]
[White "Moser, Axel"]
[Black "Geldner, Gerrit"]
[Result "1-0"]
[ECO "D31"]
[WhiteElo "2094"]
[BlackElo "1889"]
[Annotator "NA RC"]
[PlyCount "105"]
[EventDate "2024.02.01"]
[EventType "swiss"]
[EventCountry "GER"]
[SourceTitle "playchess.com"]
[Source "ChessBase"]
[SourceQuality "1"]
[TimeControl "40/5400+30:1800+30"]

1. d4 {[%emt 0:00:03]} d5 {[%emt 0:00:40]} 2. c4 {[%emt 0:00:18]} e6 {[%emt 0:00:43]} 3. Nf3 {[%emt 0:00:14]} a6 {[%emt 0:00:47]} 4. cxd5 {[%emt 0:02:27]} exd5 {[%emt 0:00:10]} 5. Nc3 {[%emt 0:00:07]} c6 {[%emt 0:01:04]} 6. Bf4 {[%emt 0:01:39]} Nf6 {[%emt 0:02:26]} 7. e3 {[%emt 0:01:28]} Bd6 {[%emt 0:03:14]} 8. Be5 {[%emt 0:02:00]} h6 {[%emt 0:05:21]} 9. Bd3 {[%emt 0:02:59]} Be6 {[%emt 0:02:12]} 10. O-O {[%emt 0:13:58]} O-O {[%emt 0:05:18]} 11. h3 {[%emt 0:07:46]} c5 {[%emt 0:09:20]} 12. Bxd6 {[%emt 0:13:17]} Qxd6 {[%emt 0:00:22]} 13. dxc5 {[%emt 0:00:03]} Qxc5 {[%emt 0:01:02]} 14. Rc1 {[%emt 0:00:19]} Qa5 {[%emt 0:04:15]} 15. Nd4 {[%emt 0:04:11]} Bd7 {[%emt 0:05:21]} 16. Bc2 {[%emt 0:04:20]} Nc6 {[%emt 0:04:48]} 17. Nb3 {[%emt 0:00:41]} Qb4 {[%emt 0:04:42]} 18. Nxd5 {[%emt 0:01:14]} Nxd5 {[%emt 0:00:19]} 19. Qxd5 {[%emt 0:00:06]} Be6 {[%emt 0:01:05]} 20. Qd3 {[%emt 0:07:27]} g6 {[%emt 0:02:09]} 21. Qc3 {[%emt 0:02:25]} Rac8 {[%emt 0:05:50]} 22. Qf6 {[%emt 0:02:23]} Qe7 {[%emt 0:03:17]} 23. Qxe7 {[%emt 0:00:43]} Nxe7 {[%emt 0:00:05]} 24. Rfd1 {[%emt 0:08:55]} Rfd8 {[%emt 0:08:30]} 25. Rxd8+ {[%emt 0:01:38]} Rxd8 {[%emt 0:00:19]} 26. a3 {[%emt 0:00:37]} Rc8 {[%emt 0:02:40]} 27. Bd1 {[%emt 0:00:42]} Bxb3 {[%emt 0:02:49]} 28. Rxc8+ {[%emt 0:00:15]} Nxc8 {[%emt 0:00:06]} 29. Bxb3 {[%emt 0:00:02]} Nd6 {[%emt 0:00:37]} 30. f3 {[%emt 0:00:38]} Kf8 {[%emt 0:00:48]} 31. e4 {[%emt 0:00:38]} f6 {[%emt 0:03:50]} 32. Kf2 {[%emt 0:00:13]} Ke7 {[%emt 0:01:25]} 33. Ke3 {[%emt 0:01:01]} Nb5 {[%emt 0:03:00]} 34. Bc4 {[%emt 0:00:50]} Na7 {[%emt 0:05:45]} 35. Bd5 {[%emt 0:03:13]} b6 {[%emt 0:00:46]} 36. Bb7 {[%emt 0:00:50]} a5 {[%emt 0:00:43]} 37. a4 {[%emt 0:02:57]} Kd6 {[%emt 0:00:29]} 38. Kd4 {[%emt 0:00:15]} Kc7 {[%emt 0:02:04]} 39. Bd5 {[%emt 0:00:13]} Nc8 {[%emt 0:02:30]} 40. e5 {[%emt 0:01:36]} f5 {[%emt 0:00:21]} 41. f4 {[%emt 0:31:26]} Ne7 {[%emt 0:31:35]} 42. h4 {[%emt 0:02:21]} Kd7 {[%emt 0:00:49]} 43. Bf7 {[%emt 0:00:23]} Kc7 {[%emt 0:01:04]} 44. Kc4 {[%emt 0:00:32]} Kc6 {[%emt 0:01:01]} 45. Be8+ {[%emt 0:00:19]} Kc7 {[%emt 0:00:34]} 46. g3 {[%emt 0:00:15]} Kd8 {[%emt 0:00:53]} 47. Bf7 {[%emt 0:00:08]} Kc7 {[%emt 0:00:59]} 48. Kb5 {[%emt 0:00:08]} Kb7 {[%emt 0:00:45]} 49. Be8 {[%emt 0:00:17]} Ka7 {[%emt 0:01:00]} 50. Bc6 {[%emt 0:01:09]} Ng8 {[%emt 0:01:01]} 51. e6 {[%emt 0:00:45]} Ne7 {[%emt 0:00:34]} 52. Bf3 {[%emt 0:00:06]} Nc8 {[%emt 0:01:32]} 53. Kc6 {[%emt 0:00:07]} 1-0

[Event "LEM Sachsen-Anhalt Open 2024"]
[Site "Merseburg"]
[Date "2024.02.10"]
[Round "6.2"]
[White "Carnot, Luca"]
[Black "Urban, Tom"]
[Result "1-0"]
[ECO "D12"]
[WhiteElo "2063"]
[BlackElo "1696"]
[Annotator "NA RC"]
[PlyCount "113"]
[EventDate "2024.02.01"]
[EventType "swiss"]
[EventCountry "GER"]
[SourceTitle "playchess.com"]
[Source "ChessBase"]
[SourceQuality "1"]
[TimeControl "40/5400+30:1800+30"]

1. d4 {[%emt 0:00:03]} d5 {[%emt 0:00:04]} 2. Nf3 {[%emt 0:00:05]} Nf6 {[%emt 0:00:25]} 3. e3 {[%emt 0:00:05]} Bf5 {[%emt 0:00:52]} 4. c4 {[%emt 0:00:05]} c6 {[%emt 0:02:44]} 5. Qb3 {[%emt 0:01:33]} Qb6 {[%emt 0:03:03]} 6. Nc3 {[%emt 0:00:20]} e6 {[%emt 0:01:11]} 7. c5 {[%emt 0:08:53]} Qc7 {[%emt 0:00:41]} 8. Nh4 {[%emt 0:00:33]} Bg6 {[%emt 0:01:28]} 9. Nxg6 {[%emt 0:02:51]} hxg6 {[%emt 0:00:37]} 10. g3 {[%emt 0:00:35]} Nbd7 {[%emt 0:01:19]} 11. Bg2 {[%emt 0:00:53]} e5 {[%emt 0:01:06]} 12. O-O {[%emt 0:00:29]} Be7 {[%emt 0:00:50]} 13. Qa4 {[%emt 0:10:06]} O-O {[%emt 0:03:05]} 14. b4 {[%emt 0:00:12]} a6 {[%emt 0:13:42]} 15. Qd1 {[%emt 0:03:32]} Rfe8 {[%emt 0:05:04]} 16. a4 {[%emt 0:01:01]} Bf8 {[%emt 0:02:18]} 17. Bb2 {[%emt 0:01:15]} b5 {[%emt 0:06:14]} 18. e4 {[%emt 0:06:05]} exd4 {[%emt 0:05:13]} 19. Qxd4 {[%emt 0:00:18]} dxe4 {[%emt 0:01:13]} 20. axb5 {[%emt 0:01:02]} axb5 {[%emt 0:00:39]} 21. Rxa8 {[%emt 0:00:21]} Rxa8 {[%emt 0:00:12]} 22. Nxe4 {[%emt 0:00:58]} Nxe4 {[%emt 0:02:36]} 23. Qxe4 {[%emt 0:03:24]} Ra6 {[%emt 0:01:46]} 24. Ra1 {[%emt 0:01:45]} Rxa1+ {[%emt 0:02:44]} 25. Bxa1 {[%emt 0:00:05]} Qa7 {[%emt 0:01:59]} 26. Qd4 {[%emt 0:00:50]} Nxc5 {[%emt 0:01:32]} 27. bxc5 {[%emt 0:00:38]} Qxc5 {[%emt 0:00:18]} 28. Qxc5 {[%emt 0:00:05]} Bxc5 {[%emt 0:00:05]} 29. Bxc6 {[%emt 0:00:03]} b4 {[%emt 0:00:38]} 30. Kf1 {[%emt 0:00:14]} Kf8 {[%emt 0:01:39]} 31. Ke2 {[%emt 0:01:05]} g5 {[%emt 0:02:05]} 32. f3 {[%emt 0:00:08]} f6 {[%emt 0:03:17]} 33. g4 {[%emt 0:01:54]} Ke7 {[%emt 0:02:23]} 34. Kd3 {[%emt 0:00:51]} Bd6 {[%emt 0:01:15]} 35. h3 {[%emt 0:00:11]} Ke6 {[%emt 0:00:22]} 36. Ke4 {[%emt 0:00:32]} Kf7 {[%emt 0:07:21]} 37. Bd5+ {[%emt 0:00:05]} Kg6 {[%emt 0:00:13]} 38. Be6 {[%emt 0:00:29]} Be7 {[%emt 0:05:17]} 39. Bb2 {[%emt 0:01:35]} b3 {[%emt 0:05:51]} 40. Bxb3 {[%emt 0:00:47]} Bb4 {[%emt 0:00:43]} 41. Kd5 {[%emt 0:31:21]} Be7 {[%emt 0:34:53]} 42. Ke6 {[%emt 0:00:19]} Bb4 {[%emt 0:00:20]} 43. Bc2+ {[%emt 0:00:13]} Kh6 {[%emt 0:00:18]} 44. Kf7 {[%emt 0:00:27]} Bc5 {[%emt 0:00:26]} 45. Bc3 {[%emt 0:00:22]} Bd6 {[%emt 0:00:30]} 46. Ba5 {[%emt 0:00:06]} Bc5 {[%emt 0:00:44]} 47. Bd8 {[%emt 0:00:59]} Bb4 {[%emt 0:01:59]} 48. Be7 {[%emt 0:00:26]} Bc3 {[%emt 0:00:12]} 49. Bf8 {[%emt 0:00:08]} f5 {[%emt 0:00:07]} 50. Bxf5 {[%emt 0:00:23]} Bd4 {[%emt 0:01:25]} 51. Bd6 {[%emt 0:00:37]} Bc3 {[%emt 0:03:08]} 52. h4 {[%emt 0:02:32]} Bd4 {[%emt 0:02:25]} 53. Bg6 {[%emt 0:00:20]} Bc3 {[%emt 0:01:26]} 54. f4 {[%emt 0:00:14]} Bf6 {[%emt 0:00:38]} 55. Be5 {[%emt 0:00:36]} gxh4 {[%emt 0:00:48]} 56. g5+ {[%emt 0:00:03]} Bxg5 {[%emt 0:00:09]} 57. Bxg7# {[%emt 0:00:04]} 1-0

[Event "LEM Sachsen-Anhalt Open 2024"]
[Site "Merseburg"]
[Date "2024.02.10"]
[Round "6.3"]
[White "Tawilah, Youssef"]
[Black "Binnewies, Markus"]
[Result "1/2-1/2"]
[ECO "A46"]
[WhiteElo "1541"]
[BlackElo "1772"]
[Annotator "NA RC"]
[PlyCount "117"]
[EventDate "2024.02.01"]
[EventType "swiss"]
[EventCountry "GER"]
[SourceTitle "playchess.com"]
[Source "ChessBase"]
[SourceQuality "1"]
[TimeControl "40/5400+30:1800+30"]

1. d4 {[%emt 0:00:04]} Nf6 {[%emt 0:01:41]} 2. Nf3 {[%emt 0:00:47]} c6 {[%emt 0:01:08]} 3. c3 {[%emt 0:02:08]} g6 {[%emt 0:00:56]} 4. Bf4 {[%emt 0:01:39]} d6 {[%emt 0:00:42]} 5. Nbd2 {[%emt 0:02:05]} Nh5 {[%emt 0:17:30]} 6. Bg3 {[%emt 0:00:25]} f5 {[%emt 0:04:26]} 7. e3 {[%emt 0:04:46]} Be6 {[%emt 0:02:11]} 8. Ng5 {[%emt 0:07:40]} Bg8 {[%emt 0:00:18]} 9. f4 {[%emt 0:03:02]} h6 {[%emt 0:01:41]} 10. Ngf3 {[%emt 0:01:24]} Nf6 {[%emt 0:01:02]} 11. Bc4 {[%emt 0:06:35]} a5 {[%emt 0:06:16]} 12. Bxg8 {[%emt 0:16:42]} Rxg8 {[%emt 0:00:33]} 13. Qe2 {[%emt 0:01:51]} d5 {[%emt 0:03:32]} 14. Ne5 {[%emt 0:01:34]} Nbd7 {[%emt 0:00:34]} 15. c4 {[%emt 0:02:00]} e6 {[%emt 0:04:28]} 16. c5 {[%emt 0:01:45]} Nxe5 {[%emt 0:02:12]} 17. fxe5 {[%emt 0:00:05]} Nh7 {[%emt 0:01:06]} 18. O-O {[%emt 0:03:34]} b5 {[%emt 0:04:24]} 19. cxb6 {[%emt 0:01:58]} Qxb6 {[%emt 0:00:37]} 20. Rab1 {[%emt 0:02:24]} Be7 {[%emt 0:05:50]} 21. Rfc1 {[%emt 0:02:03]} Nf8 {[%emt 0:02:04]} 22. Rc2 {[%emt 0:03:23]} Kf7 {[%emt 0:01:56]} 23. Rbc1 {[%emt 0:01:13]} Rc8 {[%emt 0:00:12]} 24. Be1 {[%emt 0:00:28]} a4 {[%emt 0:01:44]} 25. b3 {[%emt 0:02:25]} c5 {[%emt 0:06:14]} 26. Qd3 {[%emt 0:02:03]} Nd7 {[%emt 0:01:12]} 27. Nb1 {[%emt 0:01:40]} axb3 {[%emt 0:01:24]} 28. axb3 {[%emt 0:00:02]} Ra8 {[%emt 0:00:31]} 29. Bf2 {[%emt 0:02:34]} Ra1 {[%emt 0:00:44]} 30. Nd2 {[%emt 0:01:03]} Rga8 {[%emt 0:00:35]} 31. Qf1 {[%emt 0:02:24]} R1a2 {[%emt 0:03:06]} 32. Rxa2 {[%emt 0:02:45]} Rxa2 {[%emt 0:00:14]} 33. Rd1 {[%emt 0:00:42]} Qb4 {[%emt 0:05:27]} 34. Qd3 {[%emt 0:05:12]} Rb2 {[%emt 0:04:05]} 35. Be1 {[%emt 0:02:47]} cxd4 {[%emt 0:07:46]} 36. exd4 {[%emt 0:01:39]} Bg5 {[%emt 0:03:15]} 37. h4 {[%emt 0:04:25]} Bd8 {[%emt 0:02:23]} 38. Qe3 {[%emt 0:02:03]} Bb6 {[%emt 0:00:48]} 39. Nc4 {[%emt 0:06:53]} Qxb3 {[%emt 0:01:42]} 40. Nd6+ {[%emt 0:00:14]} Kg7 {[%emt 0:01:04]} 41. Rd3 {[%emt 0:30:24]} Qa2 {[%emt 0:04:21]} 42. Bd2 {[%emt 0:00:00]} Rxd2 {[%emt 0:12:19]} 43. Rxd2 {[%emt 0:00:00]} Qa7 {[%emt 0:05:33]} 44. Kh2 {[%emt 0:00:00]} Bd8 {[%emt 0:00:14]} 45. Qf2 {[%emt 0:00:00]} Nb6 {[%emt 0:03:21]} 46. Rc2 {[%emt 0:00:00]} Qe7 {[%emt 0:01:13]} 47. g3 {[%emt 0:00:00]} g5 {[%emt 0:02:13]} 48. h5 {[%emt 0:00:00]} g4 {[%emt 0:02:08]} 49. Qe2 {[%emt 0:00:00]} Qg5 {[%emt 0:01:01]} 50. Ne8+ {[%emt 0:00:00]} Kf8 {[%emt 0:00:51]} 51. Nd6 {[%emt 0:00:00]} Qxh5+ {[%emt 0:00:21]} 52. Kg1 {[%emt 0:00:00]} Qg5 {[%emt 0:01:29]} 53. Qb5 {[%emt 0:00:00]} Kg7 {[%emt 0:03:09]} 54. Qe8 {[%emt 0:01:21]} Qe7 {[%emt 0:00:15]} 55. Qxe7+ {[%emt 0:00:30]} Bxe7 {[%emt 0:00:04]} 56. Rc7 {[%emt 0:00:18]} Kf8 {[%emt 0:00:14]} 57. Rc6 {[%emt 0:01:02]} Nc4 {[%emt 0:01:24]} 58. Nc8 {[%emt 0:03:18]} Bg5 {[%emt 0:00:18]} 59. Rxe6 {[%emt 0:00:57]} 1/2-1/2

[Event "LEM Sachsen-Anhalt Open 2024"]
[Site "Merseburg"]
[Date "2024.02.10"]
[Round "6.4"]
[White "Kern, Rene"]
[Black "Winnig, Bernd"]
[Result "1-0"]
[ECO "D02"]
[WhiteElo "1792"]
[BlackElo "1883"]
[Annotator "NA RC"]
[PlyCount "53"]
[EventDate "2024.02.01"]
[EventType "swiss"]
[EventCountry "GER"]
[SourceTitle "playchess.com"]
[Source "ChessBase"]
[SourceQuality "1"]
[TimeControl "40/5400+30:1800+30"]

1. d4 {[%emt 0:00:01]} e6 {[%emt 0:00:07]} 2. Nf3 {[%emt 0:00:07]} Nf6 {[%emt 0:00:14]} 3. Bf4 {[%emt 0:00:06]} d5 {[%emt 0:00:10]} 4. e3 {[%emt 0:00:10]} c5 {[%emt 0:00:46]} 5. c3 {[%emt 0:00:11]} Qb6 {[%emt 0:01:49]} 6. Qb3 {[%emt 0:01:08]} c4 {[%emt 0:03:29]} 7. Qc2 {[%emt 0:00:06]} Bd6 {[%emt 0:00:32]} 8. Bg3 {[%emt 0:00:28]} Nbd7 {[%emt 0:02:31]} 9. b3 {[%emt 0:01:09]} cxb3 {[%emt 0:03:07]} 10. axb3 {[%emt 0:00:07]} Qc7 {[%emt 0:00:20]} 11. Bxd6 {[%emt 0:04:28]} Qxd6 {[%emt 0:00:06]} 12. Nbd2 {[%emt 0:01:01]} Nb6 {[%emt 0:03:42]} 13. Ne5 {[%emt 0:03:30]} Nfd7 {[%emt 0:05:07]} 14. f4 {[%emt 0:01:13]} Nxe5 {[%emt 0:05:44]} 15. fxe5 {[%emt 0:00:44]} Qc7 {[%emt 0:01:42]} 16. Bd3 {[%emt 0:00:31]} h6 {[%emt 0:00:20]} 17. O-O {[%emt 0:00:14]} O-O {[%emt 0:00:24]} 18. e4 {[%emt 0:00:51]} Bd7 {[%emt 0:01:16]} 19. Rf3 {[%emt 0:12:59]} Bc6 {[%emt 0:07:01]} 20. Raf1 {[%emt 0:03:07]} Rac8 {[%emt 0:04:09]} 21. Rg3 {[%emt 0:00:54]} Qe7 {[%emt 0:02:36]} 22. Rf4 {[%emt 0:04:53]} Kh8 {[%emt 0:08:31]} 23. Qd1 {[%emt 0:03:06]} Be8 {[%emt 0:03:00]} 24. Rf6 {[%emt 0:03:45]} Rg8 {[%emt 0:05:39]} 25. Qh5 {[%emt 0:00:16]} Qf8 {[%emt 0:00:37]} 26. Rxg7 {[%emt 0:04:09]} Rxg7 {[%emt 0:00:50]} 27. Rxh6+ {[%emt 0:00:15]} 1-0

[Event "LEM Sachsen-Anhalt Open 2024"]
[Site "Merseburg"]
[Date "2024.02.10"]
[Round "6.5"]
[White "Martemyanov, Mikhail"]
[Black "Lehmann, Taylor"]
[Result "1-0"]
[ECO "C29"]
[WhiteElo "1257"]
[BlackElo "1745"]
[Annotator "NA RC"]
[PlyCount "59"]
[EventDate "2024.02.01"]
[EventType "swiss"]
[EventCountry "GER"]
[SourceTitle "playchess.com"]
[Source "ChessBase"]
[SourceQuality "1"]
[TimeControl "40/5400+30:1800+30"]

1. e4 {[%emt 0:00:03]} e5 {[%emt 0:00:07]} 2. Nc3 {[%emt 0:00:05]} Nf6 {[%emt 0:00:10]} 3. f4 {[%emt 0:00:06]} d5 {[%emt 0:00:12]} 4. fxe5 {[%emt 0:00:06]} Nxe4 {[%emt 0:00:07]} 5. Nf3 {[%emt 0:00:39]} Nxc3 {[%emt 0:00:27]} 6. bxc3 {[%emt 0:01:03]} c5 {[%emt 0:01:13]} 7. d4 {[%emt 0:03:50]} c4 {[%emt 0:00:17]} 8. Bf4 {[%emt 0:02:26]} Be6 {[%emt 0:03:30]} 9. Be2 {[%emt 0:01:27]} Be7 {[%emt 0:00:08]} 10. O-O {[%emt 0:02:37]} g5 {[%emt 0:00:58]} 11. Be3 {[%emt 0:19:24]} h6 {[%emt 0:00:27]} 12. h3 {[%emt 0:17:42]} Qd7 {[%emt 0:04:13]} 13. Nh2 {[%emt 0:00:54]} Nc6 {[%emt 0:01:16]} 14. Bg4 {[%emt 0:03:13]} O-O-O {[%emt 0:01:53]} 15. Rxf7 {[%emt 0:06:13]} Rdf8 {[%emt 0:00:23]} 16. Rxf8+ {[%emt 0:01:26]} Rxf8 {[%emt 0:00:08]} 17. Bxe6 {[%emt 0:00:49]} Qxe6 {[%emt 0:00:08]} 18. Qh5 {[%emt 0:00:08]} Nd8 {[%emt 0:09:57]} 19. Ng4 {[%emt 0:03:14]} Qf5 {[%emt 0:23:36]} 20. Qxh6 {[%emt 0:18:42]} Qxc2 {[%emt 0:00:15]} 21. Rc1 {[%emt 0:01:27]} Qf5 {[%emt 0:02:40]} 22. Nf6 {[%emt 0:02:59]} Ba3 {[%emt 0:03:28]} 23. Re1 {[%emt 0:02:36]} Nf7 {[%emt 0:20:35]} 24. Qg7 {[%emt 0:00:29]} Nxe5 {[%emt 0:09:15]} 25. dxe5 {[%emt 0:02:41]} Qxe5 {[%emt 0:00:08]} 26. Qd7+ {[%emt 0:00:50]} Kb8 {[%emt 0:00:05]} 27. Bxa7+ {[%emt 0:00:13]} Kxa7 {[%emt 0:01:01]} 28. Rxe5 {[%emt 0:00:06]} Bc5+ {[%emt 0:00:44]} 29. Kh2 {[%emt 0:00:32]} Rxf6 {[%emt 0:00:13]} 30. Rxd5 {[%emt 0:00:13]} 1-0

[Event "LEM Sachsen-Anhalt Open 2024"]
[Site "Merseburg"]
[Date "2024.02.10"]
[Round "6.6"]
[White "Korte, Markus"]
[Black "Patzschke, Carlo"]
[Result "1/2-1/2"]
[ECO "B50"]
[WhiteElo "1879"]
[BlackElo "1636"]
[Annotator "NA RC"]
[PlyCount "42"]
[EventDate "2024.02.01"]
[EventType "swiss"]
[EventCountry "GER"]
[SourceTitle "playchess.com"]
[Source "ChessBase"]
[SourceQuality "1"]
[TimeControl "40/5400+30:1800+30"]

1. e4 {[%emt 0:00:01]} c5 {[%emt 0:00:09]} 2. Nf3 {[%emt 0:00:10]} d6 {[%emt 0:00:05]} 3. c3 {[%emt 0:00:05]} Nf6 {[%emt 0:01:07]} 4. h3 {[%emt 0:00:20]} Nc6 {[%emt 0:00:27]} 5. Bd3 {[%emt 0:00:07]} e5 {[%emt 0:03:23]} 6. O-O {[%emt 0:00:20]} g6 {[%emt 0:00:20]} 7. Bc2 {[%emt 0:00:15]} Bg7 {[%emt 0:00:26]} 8. d4 {[%emt 0:00:34]} O-O {[%emt 0:01:19]} 9. Re1 {[%emt 0:06:17]} Qc7 {[%emt 0:04:05]} 10. Be3 {[%emt 0:14:03]} b6 {[%emt 0:01:44]} 11. Na3 {[%emt 0:02:07]} a6 {[%emt 0:03:50]} 12. Rc1 {[%emt 0:00:35]} Ne7 {[%emt 0:10:01]} 13. Qd2 {[%emt 0:04:37]} Kh8 {[%emt 0:14:34]} 14. Bh6 {[%emt 0:07:08]} Nfg8 {[%emt 0:04:11]} 15. Bxg7+ {[%emt 0:01:36]} Kxg7 {[%emt 0:00:06]} 16. dxe5 {[%emt 0:09:51]} dxe5 {[%emt 0:00:35]} 17. Nc4 {[%emt 0:00:13]} Rd8 {[%emt 0:02:11]} 18. Qe2 {[%emt 0:00:15]} f6 {[%emt 0:02:53]} 19. Ne3 {[%emt 0:01:33]} Be6 {[%emt 0:02:12]} 20. Bb3 {[%emt 0:03:29]} Bxb3 {[%emt 0:06:12]} 21. axb3 {[%emt 0:00:09]} Qb7 {[%emt 0:01:32]} 1/2-1/2

[Event "LEM Sachsen-Anhalt Open 2024"]
[Site "Merseburg"]
[Date "2024.02.10"]
[Round "6.7"]
[White "Hentzgen, Thomas"]
[Black "Brueckner, Julian"]
[Result "1-0"]
[ECO "E90"]
[WhiteElo "1939"]
[BlackElo "1592"]
[Annotator "NA RC"]
[PlyCount "65"]
[EventDate "2024.02.01"]
[EventType "swiss"]
[EventCountry "GER"]
[SourceTitle "playchess.com"]
[Source "ChessBase"]
[SourceQuality "1"]
[TimeControl "40/5400+30:1800+30"]

1. c4 {[%emt 0:00:02]} Nf6 {[%emt 0:00:08]} 2. Nc3 {[%emt 0:00:05]} g6 {[%emt 0:00:14]} 3. e4 {[%emt 0:03:05]} d6 {[%emt 0:01:35]} 4. d4 {[%emt 0:00:10]} Bg7 {[%emt 0:00:45]} 5. h3 {[%emt 0:00:21]} O-O {[%emt 0:00:58]} 6. Bg5 {[%emt 0:00:20]} Nbd7 {[%emt 0:00:59]} 7. Nf3 {[%emt 0:04:57]} c5 {[%emt 0:04:38]} 8. d5 {[%emt 0:00:57]} Nb6 {[%emt 0:06:08]} 9. Bd3 {[%emt 0:05:13]} e6 {[%emt 0:03:28]} 10. Qd2 {[%emt 0:08:21]} exd5 {[%emt 0:04:18]} 11. cxd5 {[%emt 0:03:48]} Bd7 {[%emt 0:02:36]} 12. O-O {[%emt 0:12:29]} Rc8 {[%emt 0:04:28]} 13. Qf4 {[%emt 0:02:31]} Qe7 {[%emt 0:03:58]} 14. Qh4 {[%emt 0:05:01]} c4 {[%emt 0:05:30]} 15. Bc2 {[%emt 0:00:40]} Be8 {[%emt 0:02:46]} 16. Rad1 {[%emt 0:11:49]} Nbd7 {[%emt 0:08:05]} 17. Nh2 {[%emt 0:06:59]} h5 {[%emt 0:03:47]} 18. f4 {[%emt 0:04:18]} Qd8 {[%emt 0:03:42]} 19. e5 {[%emt 0:00:55]} Qb6+ {[%emt 0:00:25]} 20. Qf2 {[%emt 0:07:56]} Qxf2+ {[%emt 0:02:43]} 21. Rxf2 {[%emt 0:00:04]} dxe5 {[%emt 0:00:27]} 22. fxe5 {[%emt 0:00:18]} Nh7 {[%emt 0:01:30]} 23. Be7 {[%emt 0:00:55]} Bxe5 {[%emt 0:00:09]} 24. Bxf8 {[%emt 0:02:10]} Kxf8 {[%emt 0:00:09]} 25. Bxg6 {[%emt 0:00:53]} Ng5 {[%emt 0:01:08]} 26. Bxh5 {[%emt 0:00:58]} Nc5 {[%emt 0:00:30]} 27. Nf3 {[%emt 0:03:02]} Bxc3 {[%emt 0:01:13]} 28. Nxg5 {[%emt 0:01:32]} Ba5 {[%emt 0:01:04]} 29. Bxf7 {[%emt 0:03:23]} Bxf7 {[%emt 0:00:30]} 30. Rxf7+ {[%emt 0:00:19]} Kg8 {[%emt 0:00:28]} 31. Rdf1 {[%emt 0:02:21]} Bb6 {[%emt 0:01:32]} 32. Kh1 {[%emt 0:00:48]} Nd3 {[%emt 0:00:42]} 33. Ne6 {[%emt 0:01:16]} 1-0

[Event "LEM Sachsen-Anhalt Open 2024"]
[Site "Merseburg"]
[Date "2024.02.10"]
[Round "6.9"]
[White "Golitsyn, Yuri"]
[Black "Shevchenko, Igor"]
[Result "1/2-1/2"]
[ECO "D02"]
[WhiteElo "1781"]
[BlackElo "2105"]
[Annotator "NA COMBH"]
[PlyCount "151"]
[EventDate "2024.02.01"]
[EventType "swiss"]
[EventCountry "GER"]
[SourceTitle "playchess.com"]
[Source "ChessBase"]
[SourceQuality "1"]
[TimeControl "40/5400+30:1800+30"]

1. d4 {[%emt 0:00:26]} Nf6 {[%emt 0:00:09]} 2. Bf4 {[%emt 0:00:10]} e6 {[%emt 0:00:15]} 3. e3 {[%emt 0:00:11]} d5 {[%emt 0:00:11]} 4. Nd2 {[%emt 0:00:18]} Bd6 {[%emt 0:00:15]} 5. Bg3 {[%emt 0:00:22]} O-O {[%emt 0:00:20]} 6. Ngf3 {[%emt 0:00:50]} c5 {[%emt 0:00:19]} 7. c3 {[%emt 0:00:08]} Qc7 {[%emt 0:00:10]} 8. dxc5 {[%emt 0:01:57]} Bxg3 {[%emt 0:00:39]} 9. hxg3 {[%emt 0:00:21]} Qxc5 {[%emt 0:00:15]} 10. Bd3 {[%emt 0:01:58]} Nbd7 {[%emt 0:02:31]} 11. Qe2 {[%emt 0:03:01]} e5 {[%emt 0:07:52]} 12. e4 {[%emt 0:03:09]} dxe4 {[%emt 0:03:19]} 13. Nxe4 {[%emt 0:00:50]} Nxe4 {[%emt 0:06:48]} 14. Qxe4 {[%emt 0:01:38]} Nf6 {[%emt 0:02:03]} 15. Qh4 {[%emt 0:07:06]} e4 {[%emt 0:06:42]} 16. Bc2 {[%emt 0:06:56]} Re8 {[%emt 0:02:11]} 17. Nd4 {[%emt 0:03:26]} Bg4 {[%emt 0:03:26]} 18. O-O {[%emt 0:03:02]} Rad8 {[%emt 0:01:39]} 19. Bd1 {[%emt 0:03:58]} Bxd1 {[%emt 0:01:08]} 20. Raxd1 {[%emt 0:00:51]} Qe5 {[%emt 0:02:25]} 21. Qf4 {[%emt 0:08:10]} Qxf4 {[%emt 0:00:47]} 22. gxf4 {[%emt 0:00:03]} Nd5 {[%emt 0:00:15]} 23. g3 {[%emt 0:05:42]} h5 {[%emt 0:01:21]} 24. f5 {[%emt 0:04:42]} Nf6 {[%emt 0:02:35]} 25. Rfe1 {[%emt 0:04:14]} Rd5 {[%emt 0:03:40]} 26. Re2 {[%emt 0:04:06]} g5 {[%emt 0:06:46]} 27. fxg6 {[%emt 0:03:05]} fxg6 {[%emt 0:00:29]} 28. Rde1 {[%emt 0:01:10]} Kf7 {[%emt 0:00:36]} 29. f3 {[%emt 0:03:47]} exf3 {[%emt 0:01:23]} 30. Rxe8 {[%emt 0:00:21]} Nxe8 {[%emt 0:00:35]} 31. Kf2 {[%emt 0:03:19]} Nf6 {[%emt 0:01:13]} 32. Kxf3 {[%emt 0:00:45]} Ng4 {[%emt 0:01:40]} 33. a4 {[%emt 0:02:26]} a6 {[%emt 0:02:46]} 34. b4 {[%emt 0:01:32]} Nf6 {[%emt 0:01:31]} 35. a5 {[%emt 0:01:19]} Ne8 {[%emt 0:02:10]} 36. Re2 {[%emt 0:05:14]} Nd6 {[%emt 0:38:06]} 37. Rc2 {[%emt 0:05:20]} Kf6 {[%emt 0:00:00]} 38. Rc1 {[%emt 0:02:47]} Re5 {[%emt 0:00:00]} 39. c4 {[%emt 0:07:30]} Re4 {[%emt 0:00:00]} 40. c5 {[%emt 0:00:25]} Rxd4 {[%emt 0:00:00]} 41. cxd6 {[%emt 0:30:20]} Rxd6 {[%emt 0:13:00]} 42. Rc7 {[%emt 0:00:20]} b6 {[%emt 0:00:18]} 43. axb6 {[%emt 0:01:35]} Rxb6 {[%emt 0:00:51]} 44. Rc4 {[%emt 0:02:18]} Ke5 {[%emt 0:01:48]} 45. Ke3 {[%emt 0:00:00]} g5 {[%emt 0:00:00]} 46. Rc5+ {[%emt 0:00:00]} Kf6 {[%emt 0:00:00]} 47. Rc4 {[%emt 0:00:00]} Kf5 {[%emt 0:00:00]} 48. Kf3 {[%emt 0:00:00]} Rb5 {[%emt 0:00:00]} 49. Rc6 {[%emt 0:00:00]} Rxb4 {[%emt 0:00:00]} 50. Rxa6 {[%emt 0:00:00]} Rb3+ {[%emt 0:00:00]} 51. Kg2 {[%emt 0:00:00]} Rb2+ {[%emt 0:00:00]} 52. Kf3 {[%emt 0:00:00]} g4+ {[%emt 0:00:00]} 53. Ke3 {[%emt 0:00:00]} Rb3+ {[%emt 0:00:00]} 54. Kf2 {[%emt 0:00:00]} Ke4 {[%emt 0:00:00]} 55. Re6+ {[%emt 0:00:00]} Kf5 {[%emt 0:00:00]} 56. Re8 {[%emt 0:00:00]} Rb2+ {[%emt 0:00:00]} 57. Kg1 {[%emt 0:00:00]} Rd2 {[%emt 0:00:00]} 58. Re7 {[%emt 0:00:00]} Rd6 {[%emt 0:00:00]} 59. Kf2 {[%emt 0:00:00]} Rh6 {[%emt 0:00:00]} 60. Re8 {[%emt 0:00:00]} Kg5 {[%emt 0:00:00]} 61. Re7 {[%emt 0:00:00]} h4 {[%emt 0:00:00]} 62. gxh4+ {[%emt 0:00:00]} Kxh4 {[%emt 0:00:00]} 63. Kg2 {[%emt 0:00:00]} Kg5 {[%emt 0:00:00]} 64. Rg7+ {[%emt 0:00:00]} Kf5 {[%emt 0:00:00]} 65. Rf7+ {[%emt 0:00:00]} Kg6 {[%emt 0:00:00]} 66. Rf8 {[%emt 0:00:00]} Kg5 {[%emt 0:00:00]} 67. Rg8+ {[%emt 0:00:00]} Kh4 {[%emt 0:00:00]} 68. Rg7 {[%emt 0:00:00]} Rh5 {[%emt 0:00:00]} 69. Rg8 {[%emt 0:00:00]} Rf5 {[%emt 0:00:00]} 70. Rg7 {[%emt 0:00:00]} Rf4 {[%emt 0:00:00]} 71. Rg8 {[%emt 0:00:00]} Ra4 {[%emt 0:00:00]} 72. Rh8+ {[%emt 0:00:00]} Kg5 {[%emt 0:00:00]} 73. Rg8+ {[%emt 0:00:00]} Kf4 {[%emt 0:00:00]} 74. Rf8+ {[%emt 0:00:00]} Kg5 {[%emt 0:00:00]} 75. Rg8+ {[%emt 0:00:00]} Kh4 {[%emt 0:00:00]} 76. Rh8+ {[%emt 0:17:22]} 1/2-1/2